bitfinex/quotes_ETHUSD_20240714
["timestamp","ask_amount","ask_price","bid_price","bid_amount"]
[1720957160186,2.4027,3211.1,3210.7,3.1]
[1720957160386,2.4027,3211.1,3211.0,0.0444033]
[1720957160582,2.83925697,3211.1,3210.8,0.04453049]
[1720957160822,4.03848491,3210.9,3210.8,0.04453049]
[1720957161022,4.03848491,3210.9,3210.6,7.29]
[1720957162395,4.03848491,3210.9,3210.7,0.04459409]
[1720957162605,4.03838383,3210.9,3210.7,0.04459409]
[1720957162910,2.4027,3210.9,3210.7,0.04459409]
[1720957163113,1.63568383,3211.0,3210.7,0.04459409]
[1720957163313,4.03838383,3211.1,3210.7,2.7250535]
[1720957164119,2.4027,3211.1,3210.7,2.7250535]
[1720957164315,4.03818721,3211.1,3210.7,2.7250535]
[1720957165440,3.92459832,3212.6,3211.0,3.72165633]
[1720957165622,1.96229916,3212.9,3211.0,3.72165633]
[1720957165623,1.6352493,3212.9,3211.7,1.873]
[1720957165936,1.63340512,3213.0,3211.8,0.06224628]
[1720957166097,1.63340512,3213.0,3211.9,1.873]
[1720957166301,2.462,3213.3,3211.9,1.91550352]
[1720957166527,2.462,3213.3,3212.1,1.873]
[1720957166702,2.7082,3213.3,3212.2,0.2423]
[1720957166912,0.07781125,3213.2,3212.2,0.28461288]
[1720957168432,2.7082,3213.3,3212.2,0.28461288]
[1720957170950,0.07781587,3213.2,3212.2,0.04231288]
[1720957171302,0.07781587,3213.2,3212.1,7.29]
[1720957171606,2.7082,3213.3,3212.3,0.04209829]
[1720957171805,0.07782363,3213.2,3212.4,0.04203476]
[1720957172236,0.07782363,3213.2,3212.5,0.04197122]
[1720957172539,0.27860236,3213.1,3212.2,3.0]
[1720957172737,0.07782361,3213.0,3212.6,0.0419077]
[1720957172941,0.07782361,3213.0,3212.2,3.0]
[1720957173143,0.07782361,3213.0,3212.7,0.04184417]
[1720957173364,0.07782361,3213.0,3212.2,3.0]
[1720957173658,0.07782361,3213.0,3212.8,0.04178065]
[1720957173852,0.07782361,3213.0,3212.2,3.0]
[1720957174416,2.462,3213.3,3212.2,4.029]
[1720957174639,2.462,3213.3,3212.3,0.04209829]
[1720957175242,0.07782158,3213.2,3212.3,0.04209829]
[1720957177552,2.462,3213.3,3212.3,0.04209829]
[1720957177764,2.462,3213.3,3212.3,0.10435165]
[1720957177913,2.462,3213.3,3212.4,0.65364878]
[1720957178117,2.462,3213.3,3212.4,0.69568354]
[1720957180737,0.07782078,3213.2,3212.4,0.69568354]
[1720957180957,0.07782078,3213.2,3212.4,0.04203476]
[1720957181324,0.07782078,3213.2,3212.2,4.029]
[1720957181525,0.07782078,3213.2,3212.5,0.04196612]
[1720957181744,0.07782078,3213.2,3212.2,3.0]
[1720957181984,0.07782078,3213.2,3212.6,0.0419026]
[1720957182138,0.25398208,3213.1,3212.2,3.0]
[1720957182455,0.07782294,3213.0,3212.7,0.04183907]
[1720957182661,0.07782294,3213.0,3212.3,0.04209319]
[1720957183056,0.07782294,3213.0,3212.2,3.0]
[1720957183225,0.07782294,3213.0,3212.4,0.04202966]
[1720957183559,0.07782294,3213.0,3212.2,3.0]
[1720957183727,0.07782294,3213.0,3212.5,0.04196612]
[1720957183938,0.07782294,3213.0,3212.2,3.0]
[1720957184124,0.07782294,3213.0,3212.6,0.0419026]
[1720957184325,0.07782294,3213.0,3212.2,3.0]
[1720957184543,0.3318049,3213.1,3212.7,0.04183907]
[1720957184745,0.3318049,3213.1,3212.2,3.0]
[1720957184951,0.3318049,3213.1,3212.8,0.04177555]
[1720957185266,0.33180478,3213.1,3212.2,3.0]
[1720957185744,2.462,3213.3,3212.3,0.04209319]
[1720957187258,2.3692,3213.6,3212.4,2.4781]
[1720957187556,2.3692,3213.6,3212.5,0.04196612]
[1720957187861,2.3692,3213.6,3212.5,3.04196612]
[1720957188026,2.3692,3213.6,3212.6,0.85200661]
[1720957188427,2.3692,3213.6,3212.7,0.04183907]
[1720957190241,0.3261188,3213.7,3212.9,1.873]
[1720957190462,0.3261188,3213.7,3213.2,1.873]
[1720957190628,2.2781,3214.4,3213.3,0.97645]
[1720957190827,0.07778631,3214.3,3213.3,0.42645]
[1720957191077,0.07779575,3214.2,3213.4,0.04134363]
[1720957193641,2.2781,3214.4,3213.4,0.04134363]
[1720957193825,0.07779567,3214.3,3213.4,0.04134363]
[1720957194638,0.07779567,3214.3,3213.4,1.11712299]
[1720957195567,0.07779561,3214.2,3213.4,1.11712299]
[1720957196461,0.07779561,3214.2,3213.4,0.04134363]
[1720957199769,0.07779792,3214.2,3213.4,0.04134363]
[1720957199930,2.2781,3214.1,3213.4,0.04134363]
[1720957200252,0.07780533,3214.0,3213.2,7.29]
[1720957200563,0.23559053,3213.9,3213.2,7.29]
[1720957200777,0.23559053,3213.9,3213.3,0.04136446]
[1720957201293,0.23559053,3213.9,3213.1,19.47]
[1720957201294,0.07780653,3213.8,3213.1,19.47]
[1720957201430,0.07780653,3213.8,3213.4,0.04130096]
[1720957201633,0.07780653,3213.8,3213.1,19.47]
[1720957201869,0.07780653,3213.8,3213.5,0.04122027]
[1720957202170,0.07780653,3213.8,3213.1,19.47]
[1720957202171,0.07780653,3213.8,3213.6,0.04115678]
[1720957202632,0.07780653,3213.8,3213.1,19.47]
[1720957202833,0.07780653,3213.8,3213.7,0.04109329]
[1720957203069,0.07780653,3213.8,3213.1,19.47]
[1720957203259,0.07780653,3213.8,3213.7,0.04109329]
[1720957203573,0.07780653,3213.8,3213.7,0.04110858]
[1720957203771,0.23559053,3213.9,3213.1,19.47]
[1720957203936,0.23559053,3213.9,3213.2,0.04142604]
[1720957207158,0.23559053,3213.9,3212.9,10.29]
[1720957207357,0.23559053,3213.9,3213.0,0.0415556]
[1720957208552,2.35590649,3214.1,3213.0,0.0415556]
[1720957208759,2.2781,3214.1,3213.0,0.0415556]
[1720957209135,0.07780636,3214.0,3213.0,0.0415556]
[1720957214435,0.32608813,3213.9,3213.0,0.0415556]
[1720957216883,0.07780597,3213.8,3213.0,0.0415556]
[1720957217441,0.32608813,3213.9,3213.0,0.0415556]
[1720957217641,0.58650694,3213.9,3213.0,0.0415556]
[1720957218077,0.58650694,3213.9,3213.1,2.3413]
[1720957218577,0.58650694,3213.9,3213.1,2.38037838]
[1720957219344,0.32608813,3213.9,3213.1,2.38037838]
[1720957221052,0.32608813,3213.9,3213.3,2.3413]
[1720957221257,0.32608813,3213.9,3213.4,2.85989566]
[1720957221484,0.32608813,3213.9,3213.5,3.0]
[1720957221985,0.32608813,3213.9,3213.6,0.03873988]
[1720957222283,0.32608813,3213.9,3213.7,0.30387399]
[1720957222670,0.32608813,3213.9,3213.8,2.37991292]
[1720957232711,0.32608813,3213.9,3213.8,5.37991292]
[1720957234077,0.32608813,3213.9,3213.8,0.03861292]
[1720957234283,2.66888813,3213.9,3213.8,0.03861292]
[1720957234490,2.93577694,3213.9,3213.2,7.29]
[1720957235009,2.93577694,3213.9,3213.3,0.037704]
[1720957241820,2.3428,3213.7,3213.3,0.037704]
[1720957242032,2.42060463,3213.7,3213.3,0.037704]
[1720957242206,0.24206046,3213.6,3212.8,26.76]
[1720957242401,0.0778074,3213.5,3212.9,0.03799753]
[1720957242908,0.32608999,3213.4,3212.9,0.03799753]
[1720957243419,2.3428,3213.3,3212.9,0.03799753]
[1720957244419,2.3428,3213.3,3212.6,3.0]
[1720957244625,2.3428,3213.3,3213.0,0.03789749]
[1720957244938,2.3428,3213.3,3213.1,0.03781751]
[1720957245144,2.3428,3213.3,3212.7,3.0]
[1720957245303,2.3428,3213.3,3212.6,3.0]
[1720957245498,2.3428,3213.3,3212.7,0.03807157]
[1720957251323,2.3428,3213.3,3212.7,1.07087873]
[1720957254635,0.32608999,3213.4,3212.8,0.06224973]
[1720957254841,0.32608999,3213.4,3212.8,3.06224973]
[1720957255017,0.32608999,3213.4,3212.9,0.03796474]
[1720957255221,0.32608999,3213.4,3212.9,0.58796474]
[1720957255523,0.32608999,3213.4,3213.0,0.35879647]
[1720957255722,0.32608999,3213.4,3213.1,0.03783772]
[1720957257053,0.32608999,3213.4,3213.1,2.29523772]
[1720957261345,0.32608999,3213.4,3213.1,0.03783772]
[1720957265987,0.32608999,3213.4,3213.1,0.58783772]
[1720957268590,0.32608999,3213.4,3213.1,0.03783772]
[1720957268944,0.07779901,3213.3,3212.9,3.0]
[1720957269176,2.4031,3213.2,3213.0,0.03776325]
[1720957269406,2.48091964,3213.1,3212.1,7.29]
[1720957269560,2.4031,3213.1,3212.3,0.03820792]
[1720957270068,0.3261603,3213.0,3212.3,0.03820792]
[1720957270255,2.4031,3212.9,3212.3,0.03820792]
[1720957272984,2.4031,3212.9,3212.4,0.03707375]
[1720957273187,2.4031,3212.9,3212.1,7.29]
[1720957273407,2.4031,3212.9,3212.1,9.252]
[1720957273681,2.4031,3212.9,3212.2,0.03720083]
[1720957274053,2.4031,3212.9,3212.2,0.58720083]
[1720957280881,2.4031,3212.9,3212.2,0.64945415]
[1720957281664,2.4031,3212.9,3212.2,0.58720083]
[1720957281864,2.4031,3212.9,3212.3,0.98392008]
[1720957282251,2.4031,3212.9,3212.4,0.03714951]
[1720957285694,0.3261603,3213.0,3212.5,2.3831]
[1720957285927,0.3261603,3213.0,3212.6,0.06224613]
[1720957286205,0.3261603,3213.0,3212.6,0.64925712]
[1720957286364,0.3261603,3213.0,3212.7,0.60323571]
[1720957286562,0.3261603,3213.0,3212.8,0.03688394]
[1720957286777,0.3261603,3213.0,3212.6,0.55]
[1720957287021,0.3261603,3213.0,3212.7,0.03694746]
[1720957297518,2.3666,3212.9,3212.7,0.03694746]
[1720957298377,2.3666,3212.9,3212.8,0.03579936]
[1720957298715,2.3666,3212.9,3212.4,0.55]
[1720957298883,2.3666,3212.9,3212.8,0.03579936]
[1720957299082,2.3666,3212.9,3212.6,0.55]
[1720957299284,2.3666,3212.9,3212.8,0.03579936]
[1720957299522,2.3666,3212.9,3212.4,3.0]
[1720957299523,2.3666,3212.9,3212.7,0.03586288]
[1720957299719,2.3666,3212.9,3212.8,0.03579936]
[1720957300420,2.3666,3212.9,3212.5,1.1]
[1720957300716,2.3666,3212.9,3212.6,0.0359264]
[1720957303798,0.3261603,3213.0,3212.6,0.0359264]
[1720957304196,0.3261603,3213.0,3212.7,2.23159264]
[1720957304401,0.3261603,3213.0,3212.8,0.03582072]
[1720957304608,0.3261603,3213.0,3212.8,0.55]
[1720957304813,0.3261603,3213.0,3212.9,0.03574774]
[1720957305634,0.3261603,3213.0,3212.9,3.03574774]
[1720957305834,0.3261603,3213.0,3212.9,3.98018178]
[1720957306413,0.3261603,3213.0,3212.9,0.43018178]
[1720957306640,0.3261603,3213.0,3212.9,3.43018178]
[1720957307502,0.3261603,3213.0,3212.9,8.19668178]
[1720957307503,0.05173428,3213.0,3212.9,8.19668178]
[1720957307725,2.3688,3213.9,3212.9,6.32368178]
[1720957307937,2.3688,3213.9,3213.0,4.18236818]
[1720957308307,2.3688,3213.9,3213.1,0.09659728]
[1720957308835,2.3688,3213.9,3213.2,0.55]
[1720957309151,2.3688,3213.9,3213.3,0.03423477]
[1720957309663,2.3688,3213.9,3213.1,0.55]
[1720957309872,2.3688,3213.9,3213.4,0.03417127]
[1720957310160,2.3688,3213.9,3213.1,0.55]
[1720957310360,2.3688,3213.9,3213.5,0.03410778]
[1720957310531,2.3688,3213.9,3213.1,0.55]
[1720957310732,2.3688,3213.9,3213.6,0.03404429]
[1720957310962,2.3688,3213.9,3213.1,0.55]
[1720957311165,2.3688,3213.9,3213.7,0.0339808]
[1720957311342,2.3688,3213.9,3213.1,0.55]
[1720957311878,2.3688,3213.9,3213.2,0.03429827]
[1720957318086,2.3688,3213.9,3213.2,0.66666727]
[1720957318575,2.3688,3213.9,3213.3,0.06223466]
[1720957318969,2.3688,3213.9,3213.4,0.0341426]
[1720957319167,2.3688,3214.5,3213.4,0.40701723]
[1720957319370,2.3688,3214.5,3213.5,0.06222905]
[1720957319701,2.3688,3214.5,3213.6,0.03401562]
[1720957321880,2.44658802,3214.5,3213.6,0.03401562]
[1720957322080,2.3688,3214.3,3213.6,0.03401562]
[1720957322281,2.44658802,3214.3,3213.6,0.03401562]
[1720957322700,2.3688,3214.1,3213.6,0.03401562]
[1720957322867,2.3688,3213.9,3213.6,0.03401562]
[1720957326606,2.3688,3213.9,3213.2,2.3789]
[1720957326820,2.3688,3213.9,3213.7,0.03395214]
[1720957327115,0.32605562,3214.1,3213.8,0.03388866]
[1720957327605,2.4845,3214.2,3213.3,3.60012705]
[1720957328106,2.4845,3214.2,3213.4,0.0341426]
[1720957328896,2.4845,3214.2,3213.5,0.06223157]
[1720957329101,2.4845,3214.2,3213.5,0.42565799]
[1720957329296,2.4845,3214.2,3213.6,0.03398929]
[1720957331383,2.4845,3214.5,3213.6,0.03398929]
[1720957331893,2.56228786,3214.5,3213.6,0.03398929]
[1720957332093,2.4845,3214.5,3213.5,3.0]
[1720957332304,0.28105401,3214.4,3213.7,0.03390097]
[1720957332609,0.28105401,3214.4,3213.5,3.0]
[1720957332811,0.28105401,3214.4,3213.8,0.03383749]
[1720957333109,0.28105401,3214.4,3213.5,3.0]
[1720957333309,0.28105401,3214.4,3213.9,0.03377401]
[1720957333510,2.4845,3214.2,3213.4,7.29]
[1720957333717,2.4845,3214.2,3214.0,0.03611844]
[1720957334015,2.4845,3214.2,3213.4,7.29]
[1720957334214,2.4845,3214.2,3214.1,0.03364707]
[1720957334513,2.4845,3214.2,3213.4,7.29]
[1720957334716,2.76060554,3214.2,3214.1,0.03364707]
[1720957334918,2.76060554,3214.2,3213.4,7.29]
[1720957335123,2.76060554,3214.2,3214.1,0.03364707]
[1720957335327,2.76060554,3214.2,3213.4,7.29]
[1720957335526,2.76060554,3214.2,3214.1,0.03364707]
[1720957335729,2.76060554,3214.2,3213.4,7.29]
[1720957335886,2.76060554,3214.2,3214.1,0.03364707]
[1720957336220,2.76060554,3214.2,3213.4,7.29]
[1720957336423,2.76060554,3214.2,3214.1,0.03364707]
[1720957336603,2.76060554,3214.2,3213.4,7.29]
[1720957336926,2.4845,3214.2,3213.4,7.29]
[1720957337091,2.4845,3214.2,3213.5,0.03402795]
[1720957338097,2.4845,3214.2,3213.1,10.29]
[1720957338325,2.4845,3214.2,3213.6,0.03396446]
[1720957338508,2.4845,3214.2,3213.1,10.29]
[1720957338705,2.4845,3214.2,3213.7,0.03390097]
[1720957338706,2.73295,3214.2,3213.7,0.03390097]
[1720957339024,2.73295,3214.2,3213.1,10.29]
[1720957339192,2.73295,3214.2,3213.8,0.03384706]
[1720957339393,2.73295,3214.2,3213.1,10.29]
[1720957339830,2.73295,3214.2,3213.2,0.034228]
[1720957340005,2.4845,3214.0,3213.2,0.034228]
[1720957341203,2.56230048,3214.0,3213.2,0.034228]
[1720957341924,2.4845,3213.8,3213.2,0.034228]
[1720957342089,2.4845,3213.6,3212.8,7.29]
[1720957342295,2.4845,3213.4,3213.3,0.04016379]
[1720957342494,2.4845,3213.4,3212.6,19.47]
[1720957342719,2.5623188,3213.3,3212.3,7.29]
[1720957342907,2.4845,3213.1,3212.3,7.29]
[1720957343109,0.07781931,3213.0,3212.3,9.966]
[1720957344112,0.32614797,3212.9,3212.3,9.966]
[1720957345400,0.07781941,3212.8,3212.3,9.966]
[1720957345602,0.07781941,3212.8,3212.3,7.29]
[1720957346797,0.32614797,3212.9,3211.9,26.76]
[1720957347000,2.2862,3212.8,3211.9,7.29]
[1720957348607,2.3640259,3212.8,3211.9,7.29]
[1720957350254,2.2862,3212.8,3211.9,7.29]
[1720957350457,2.5474348,3212.8,3211.9,7.29]
[1720957351748,0.07782879,3212.7,3211.9,7.29]
[1720957351945,2.2862,3212.8,3211.9,7.29]
[1720957357224,2.2862,3212.8,3212.0,0.03548261]
[1720957358757,0.07782865,3212.7,3212.0,0.03548261]
[1720957358958,2.2862,3212.6,3212.0,1.06803087]
[1720957359766,0.32617006,3212.5,3212.0,1.06803087]
[1720957361639,0.32617006,3212.5,3212.0,0.03548261]
[1720957363475,2.2862,3212.4,3212.0,0.03548261]
[1720957363770,2.2862,3212.4,3211.4,19.47]
[1720957363771,2.2862,3212.4,3211.5,3.0]
[1720957363937,2.2862,3212.4,3212.1,0.03541927]
[1720957364139,2.2862,3212.4,3211.5,3.0]
[1720957364338,2.2862,3212.4,3212.2,0.03536409]
[1720957364571,2.2862,3212.4,3211.5,5.976]
[1720957364790,2.2862,3212.4,3212.3,0.03531433]
[1720957365112,2.2862,3212.4,3211.5,5.976]
[1720957365407,2.2862,3212.4,3211.6,0.03579098]
[1720957365560,2.2862,3212.4,3211.7,0.6011791]
[1720957365898,2.2862,3212.4,3211.8,0.03565477]
[1720957379391,2.3286,3212.2,3211.5,5.976]
[1720957379586,2.3286,3212.2,3211.9,0.03557514]
[1720957379807,2.3286,3212.2,3211.5,3.0]
[1720957380010,0.32602138,3212.1,3212.0,0.03550705]
[1720957380250,0.32602138,3212.1,3211.4,3.0]
[1720957380451,0.32602138,3212.1,3212.0,0.03550705]
[1720957380913,0.32602138,3212.1,3211.5,0.55]
[1720957381113,0.32602138,3212.1,3211.6,0.03577944]
[1720957382247,0.32602138,3212.1,3211.6,0.39435738]
[1720957384749,0.32602138,3212.1,3211.6,0.45662384]
[1720957385029,0.32602138,3212.1,3211.7,0.55]
[1720957385198,0.32602138,3212.1,3211.8,2.3666586]
[1720957385379,0.32602138,3212.1,3211.9,0.55]
[1720957385567,0.32602138,3212.1,3212.0,0.59522991]
[1720957385767,0.32602138,3212.1,3212.0,0.03550433]
[1720957388864,2.78542138,3212.1,3212.0,0.03550433]
[1720957389265,2.78542138,3212.1,3211.6,0.35857794]
[1720957389482,2.78542138,3212.1,3212.0,0.0354541]
[1720957390100,2.78542138,3212.1,3211.6,0.35857794]
[1720957390270,2.78542138,3212.1,3212.0,0.0354541]
[1720957390471,2.78542138,3212.1,3211.3,7.29]
[1720957390670,2.78542138,3212.1,3211.5,1.579]
[1720957390970,2.78542138,3212.1,3211.6,0.03572649]
[1720957394122,0.32602138,3212.1,3211.6,0.03572649]
[1720957402713,0.32602138,3212.1,3211.7,2.3044]
[1720957402919,0.32602138,3212.1,3211.8,0.64787209]
[1720957403230,0.32602138,3212.1,3211.9,0.29522721]
[1720957403424,0.32602138,3212.1,3212.0,0.61225585]
[1720957403630,0.32602138,3212.1,3212.0,0.64773914]
[1720957404353,0.32602138,3212.1,3212.0,0.58548329]
[1720957409358,0.32602138,3212.1,3212.0,0.03548329]
[1720957409977,0.32602138,3212.1,3211.7,0.55]
[1720957410183,0.32602138,3212.1,3211.8,0.39682029]
[1720957410690,0.32602138,3212.1,3211.8,0.45907963]
[1720957410895,0.32602138,3212.1,3211.9,0.55]
[1720957411194,0.32602138,3212.1,3212.0,0.09771268]
[1720957411393,0.32602138,3212.1,3212.0,3.64771268]
[1720957411595,0.32602138,3212.1,3212.0,4.35035654]
[1720957416482,2.4981,3213.0,3212.0,4.35035654]
[1720957416812,2.4981,3213.0,3212.1,0.55]
[1720957416813,0.3260497,3212.8,3212.1,0.55]
[1720957417029,0.3260497,3212.8,3212.2,0.55228496]
[1720957417184,0.3260497,3212.8,3212.3,0.61224937]
[1720957417685,0.3260497,3212.8,3212.4,0.0405925]
[1720957417871,0.3260497,3212.8,3212.4,0.10284202]
[1720957418576,0.3260497,3212.8,3212.5,0.55]
[1720957418766,0.3260497,3212.8,3212.6,0.47159199]
[1720957418970,0.3260497,3212.8,3212.7,0.55]
[1720957419207,0.3260497,3212.8,3212.7,0.59395834]
[1720957423129,2.4981,3214.0,3212.7,3.123703]
[1720957423327,0.32601597,3213.3,3212.8,2.22089872]
[1720957423620,2.4981,3213.6,3212.9,0.59811421]
[1720957423805,2.4981,3213.6,3212.9,3.59811421]
[1720957423806,0.32600454,3213.4,3212.9,3.59811421]
[1720957427544,0.32600454,3213.4,3212.9,3.04811421]
[1720957427695,2.35,3213.3,3212.9,3.04811421]
[1720957427897,2.35,3213.3,3212.9,1.1168155]
[1720957433651,2.35,3213.3,3212.9,0.04811421]
[1720957434351,2.35,3213.1,3212.9,0.04811421]
[1720957434547,2.35,3213.1,3212.7,7.29]
[1720957434761,2.35,3213.1,3212.8,0.04014211]
[1720957434939,2.35,3213.1,3212.7,7.29]
[1720957435138,2.35,3213.1,3212.8,0.04014211]
[1720957435349,2.35,3213.1,3212.7,7.29]
[1720957435555,2.35,3213.1,3212.8,0.04012578]
[1720957435732,2.35,3213.1,3212.7,7.29]
[1720957435930,2.35,3213.1,3212.8,0.04012578]
[1720957436133,2.35,3213.1,3212.7,7.29]
[1720957436446,2.35,3213.1,3212.8,0.04012578]
[1720957436946,2.35,3213.1,3212.9,0.04004638]
[1720957437148,2.35,3213.1,3212.7,7.29]
[1720957437468,2.35,3213.1,3212.8,0.04009403]
[1720957437845,2.35,3213.1,3212.7,7.29]
[1720957438169,2.35,3213.1,3212.8,0.04009403]
[1720957438374,2.35,3213.1,3212.7,7.29]
[1720957438665,2.35,3213.1,3212.8,0.04009403]
[1720957439033,0.32604386,3213.0,3212.5,3.0]
[1720957439233,0.32604386,3213.0,3212.9,0.04004313]
[1720957439461,0.32604386,3213.0,3212.5,3.0]
[1720957439934,0.32604386,3213.0,3212.6,0.04027538]
[1720957441465,2.35,3212.9,3212.6,0.04027538]
[1720957445437,2.35,3212.9,3212.4,3.0]
[1720957445665,2.35,3212.9,3212.7,0.04015509]
[1720957445869,2.35,3212.9,3212.4,3.0]
[1720957446352,2.35,3212.9,3212.5,0.04031391]
[1720957448268,0.32604386,3213.0,3212.5,1.0733453]
[1720957449691,0.32604386,3213.0,3212.5,0.04031391]
[1720957452350,2.3,3212.9,3212.5,0.04031391]
[1720957453482,2.3,3212.9,3212.3,7.29]
[1720957453679,2.3,3212.9,3212.6,0.04019046]
[1720957453892,2.3,3212.9,3212.3,7.29]
[1720957454087,2.3,3212.9,3212.7,0.04011105]
[1720957454247,2.3,3212.9,3212.3,10.277]
[1720957454450,2.3,3212.9,3212.8,0.03999674]
[1720957454644,2.3,3212.9,3212.3,10.277]
[1720957454645,2.3,3212.9,3212.3,7.29]
[1720957454847,2.3,3212.9,3212.8,0.03999674]
[1720957455048,2.3,3212.9,3212.3,7.29]
[1720957455267,2.3,3212.9,3212.8,0.03999674]
[1720957455502,2.3,3212.9,3212.3,7.29]
[1720957455706,2.3,3212.9,3212.8,0.03999674]
[1720957456184,2.3,3212.9,3212.3,7.29]
[1720957456508,0.32604386,3213.0,3212.4,0.04031437]
[1720957456805,0.32604386,3213.0,3212.5,0.73303144]
[1720957457178,0.32604386,3213.0,3212.6,0.04015396]
[1720957458307,0.32604386,3213.0,3212.7,2.37]
[1720957458811,0.32604386,3213.0,3212.8,0.03999515]
[1720957459015,0.32604386,3213.0,3212.8,0.55]
[1720957459171,0.32604386,3213.0,3212.9,0.33191576]
[1720957460229,0.32604386,3213.0,3212.9,0.03991576]
[1720957460723,0.32604386,3213.0,3212.7,0.55]
[1720957460897,0.32604386,3213.0,3212.9,0.04354446]
[1720957461516,0.32604386,3213.0,3212.7,0.55]
[1720957461717,0.32604386,3213.0,3212.9,0.04354446]
[1720957461907,0.32604386,3213.0,3212.8,0.04363107]
[1720957462110,0.32604386,3213.0,3212.9,0.03991576]
[1720957469598,0.32604386,3213.0,3212.9,2.41611576]
[1720957470228,0.32604386,3213.0,3212.9,5.41611576]
[1720957471596,2.4447,3213.7,3212.9,5.96611576]
[1720957471797,0.32601635,3213.5,3213.0,0.61223469]
[1720957472120,0.32601635,3213.5,3213.1,0.70097184]
[1720957472432,0.32601635,3213.5,3213.2,0.06223491]
[1720957472813,0.32601635,3213.5,3213.3,0.0429636]
[1720957473011,0.32601635,3213.5,3213.3,0.062235]
[1720957473202,0.32601635,3213.5,3213.4,0.04287702]
[1720957473599,0.32601635,3213.5,3213.2,0.0622358]
[1720957473820,0.32601635,3213.5,3213.3,0.5929636]
[1720957474234,0.32601635,3213.5,3213.3,0.0429636]
[1720957474603,0.32601635,3213.5,3213.2,0.55]
[1720957474799,0.32601635,3213.5,3213.3,0.04717543]
[1720957475026,2.77071635,3213.5,3213.1,0.65783505]
[1720957475249,2.77071635,3213.5,3213.2,0.04297334]
[1720957475601,2.77071635,3213.5,3212.9,3.0]
[1720957475805,2.77071635,3213.5,3213.0,0.04314309]
[1720957479512,2.52250714,3213.4,3213.0,0.04314309]
[1720957479708,2.4447,3213.4,3213.0,0.04314309]
[1720957483143,2.4447,3213.4,3213.0,1.0764574]
[1720957484530,2.4447,3213.4,3213.0,0.04314309]
[1720957485148,2.4447,3213.4,3212.9,0.13662209]
[1720957485369,2.4447,3213.4,3213.0,0.0504222]
[1720957485578,2.4447,3213.4,3212.8,7.29]
[1720957485939,2.4447,3213.4,3212.9,0.05052806]
[1720957501921,0.32601635,3213.5,3213.0,2.4166]
[1720957502110,0.32601635,3213.5,3213.1,0.06223163]
[1720957502283,0.32601635,3213.5,3213.1,0.05013597]
[1720957507795,0.32601635,3213.5,3213.1,0.11236994]
[1720957509496,0.32601635,3213.5,3213.2,2.8275]
[1720957509827,0.32601635,3213.5,3213.3,0.34386485]
[1720957509998,0.32601635,3213.5,3213.3,0.04987786]
[1720957510345,0.32601635,3213.5,3212.9,3.15663222]
[1720957510549,0.32601635,3213.5,3213.4,0.04977203]
[1720957510747,0.32601635,3213.5,3212.9,3.15663222]
[1720957511060,0.32601635,3213.5,3213.4,0.04977203]
[1720957511263,0.32601635,3213.5,3212.9,3.15663222]
[1720957511441,0.32601635,3213.5,3213.0,1.3226086]
[1720957514252,2.3054,3213.4,3213.1,0.05008953]
[1720957514465,2.3054,3213.4,3212.8,7.29]
[1720957519331,2.3054,3213.4,3212.5,19.62]
[1720957519563,2.3054,3213.4,3212.6,3.55]
[1720957519727,2.3054,3213.4,3212.7,2.317]
[1720957525448,2.3054,3213.4,3212.6,3.0]
[1720957531694,2.3054,3213.4,3212.6,3.06224474]
[1720957533987,2.3054,3213.4,3212.6,5.45484474]
[1720957538892,2.3054,3213.4,3212.6,5.3926]
[1720957539096,2.3054,3213.4,3212.7,0.55]
[1720957539405,2.3054,3213.4,3212.8,0.59426]
[1720957542487,2.3054,3213.4,3212.6,3.0]
[1720957543282,0.32601635,3213.5,3212.6,3.0]
[1720957543283,2.4675,3213.2,3212.6,3.0]
[1720957543477,2.4675,3213.0,3212.5,7.29]
[1720957548942,2.4675,3213.0,3212.2,21.342]
[1720957549167,2.4675,3213.0,3212.3,6.76677872]
[1720957551159,2.4675,3213.0,3212.4,0.0622453]
[1720957551373,2.4675,3213.0,3212.5,0.55]
[1720957551675,2.4675,3213.0,3212.6,0.06224494]
[1720957551852,2.4675,3213.0,3212.7,0.55]
[1720957552164,2.4675,3213.0,3212.5,3.55]
[1720957552338,2.4675,3213.0,3212.6,0.5422]
[1720957552538,2.4675,3213.0,3212.7,0.55]
[1720957553123,2.3007,3213.4,3212.7,0.55]
[1720957563471,2.3007,3213.4,3212.5,5.02976043]
[1720957563472,2.3007,3213.4,3212.8,0.55]
[1720957563689,2.3007,3213.4,3212.6,0.55]
[1720957564675,2.56337768,3213.4,3212.5,3.15776043]
[1720957570576,2.56337768,3213.4,3212.5,3.22000446]
[1720957570788,2.3007,3213.4,3212.5,3.22000446]
[1720957573083,2.3007,3213.4,3212.6,0.55]
[1720957576354,2.3007,3213.4,3212.7,0.06223836]
[1720957576549,2.3007,3213.4,3212.8,0.55]
[1720957576898,2.3007,3213.4,3212.8,0.61223828]
[1720957585780,2.3007,3213.4,3212.8,0.55]
[1720957585953,2.62727768,3213.3,3212.6,0.55]
[1720957586160,2.3646,3213.3,3212.5,3.15776043]
[1720957593303,2.3646,3213.3,3212.5,3.0]
[1720957595177,2.3646,3213.3,3212.5,3.0622431]
[1720957595374,2.3646,3213.3,3212.6,1.03522431]
[1720957596291,2.3646,3213.3,3212.7,0.06224224]
[1720957596615,2.3646,3213.3,3212.8,0.55]
[1720957597117,2.3646,3213.3,3212.7,0.55]
[1720957597700,2.3646,3213.3,3212.8,0.06223956]
[1720957597878,2.3646,3213.3,3212.8,0.22698595]
[1720957600410,2.3646,3213.3,3212.8,0.16474639]
[1720957600588,2.3646,3213.3,3212.8,0.22698566]
[1720957600783,2.3646,3213.3,3212.8,0.16474639]
[1720957600985,2.3646,3213.3,3212.8,0.22698604]
[1720957601199,2.3646,3213.3,3212.9,0.55]
[1720957603283,2.3646,3213.3,3212.9,0.92769851]
[1720957604181,2.3646,3213.3,3212.9,0.37769851]
[1720957604381,2.3646,3213.3,3212.8,0.16474639]
[1720957606299,2.3646,3213.3,3212.7,3.0]